Cogmind - Beta 13 *** ADVENTURER MODE // 2024.06.03 @ 23:20:37 Player: IlyaSM Result: Destroyed by W2-RXG(R) with Subdweller Beam Cannon Performance ------------- Evolutions (0) 0 Regions Visited (2) 400 Robots Destroyed (22) 110 Value Destroyed (373) 373 Prototype IDs (0) 0 Alien Tech Used (0) 0 Bonus (0) 0 TOTAL SCORE: 883 Bonus ------- None Cogmind --------- Core Integrity 0/250 Matter 294/300 Energy 100/100 System Corruption 0% Temperature Cool (9) Movement Core (50) Location -10/Subcaves Parts ------- > --- POWER (1) -------- (None) > --- PROPULSION (2) --- (None) > --- UTILITY (2) ------ (None) > --- WEAPON (2) ------- Hammer > --- INVENTORY (5) ---- Improved Terrain Scanner Seismic Detector Medium Laser Peak State ------------ > --- POWER ------------ Light Nuclear Core > --- PROPULSION ------- Light Treads Light Treads > --- UTILITY ---------- Large Storage Unit Improved Terrain Scanner > --- WEAPON ----------- Beam Cannon Light Cannon > --- INVENTORY -------- Ion Engine Light Treads Improved Heat Sink Large Matter Pod Structural Scanner Signal Interpreter Seismic Detector Light Armor Plating EM Pulse Gun Medium Laser Light Assault Rifle Hammer [Rating: 12] Favorites ----------- Power Ion Engine Engine Ion Engine Power Core Light Nuclear Core Propulsion Light Treads Treads Light Treads Utility Large Storage Unit Device Structural Scanner Storage Large Storage Unit Processor Signal Interpreter Protection Light Armor Plating Weapon Medium Laser Energy Gun Medium Laser Energy Cannon Beam Cannon Ballistic Gun Light Assault Rifle Ballistic Cannon Light Cannon Launcher Subdweller Shrapnel Launcher Impact Weapon Hammer Build | -11 -10 -10 ------- Run | Yrd Mat Sub Slots Evolved . | . . . Power . | . . . Propulsion . | . . . Utility . | . . . Weapon . | . . . Parts Attached 23 | 9 10 4 Power 3 | 2 1 . Engine 2 | 2 . . Core 1 | . 1 . Reactor . | . . . Propulsion 2 | 2 . . Treads 2 | 2 . . Leg . | . . . Wheel . | . . . Hover . | . . . Flight . | . . . Utility 9 | 2 5 2 Device 4 | 1 3 . Storage 2 | 1 1 . Processor 1 | . 1 . Hackware . | . . . Protection 2 | . . 2 Artifact . | . . . Weapon 9 | 3 4 2 Energy Gun 2 | 2 . . Energy Cannon 1 | . 1 . Ballistic Gun 2 | 1 . 1 Ballistic Cannon 1 | . 1 . Launcher 1 | . . 1 Special Weapon . | . . . Impact Weapon 2 | . 2 . Slashing Weapon . | . . . Piercing Weapon . | . . . Special Melee Weapon . | . . . Unidentified Prototypes . | . . . Parts Lost 6 | . . 6 Power 1 | . . 1 Propulsion 2 | . . 2 Utility 1 | . . 1 Weapon 2 | . . 2 Highest Loss Streak 6 | . . 6 To Critical Strikes 1 | . . 1 Average Slot Usage (%) 99 | . 100 94 Engine 7 | . 8 . Core 6 | . 5 14 Treads 27 | . 28 27 Device 9 | . 10 . Storage 13 | . 14 12 Processor 2 | . 3 1 Protection 1 | . . 11 Energy Gun 7 | . 8 . Energy Cannon 7 | . 8 . Ballistic Gun 2 | . 2 1 Ballistic Cannon 6 | . 5 12 Impact Weapon 4 | . 3 14 Naked Turns . | . . . Heaviest Build 33 | 15 32 33 Greatest Support 40 | 40 40 40 Greatest Overweight (x) 3 | . . 3 Average Overweight (x) . | . . . Largest Inventory Capacity 15 | 8 15 15 Average Capacity 12 | 7 12 13 Most Carried 14 | 2 12 14 Average Carried 7 | 1 8 12 Final Capacity 15 | 8 15 5 Final Carried 12 | 2 12 3 Class Distribution -------------------- 100% | Mutant Dominant Class ---------------- Mutant | -10/Materials Mutant | -10/Subcaves Resources | -11 -10 -10 ----------- Run | Yrd Mat Sub Matter Collected 635 | 277 308 50 Remotely . | . . . Salvage Created 552 | 129 350 73 Parts 46 | 15 25 6 Haulers Intercepted 1 | . 1 . Recyclers Shooed . | . . . Parts Field Recycled . | . . . Retrieved Matter . | . . . Parts Self-Destructed . | . . . Prevented . | . . . Kills | -11 -10 -10 ------- Run | Yrd Mat Sub Combat Hostiles Destroyed 8 | . 6 2 Cannons 6 | . 6 . AOE 2 | . . 2 Classes Destroyed 9 | 2 6 1 Worker 1 | . 1 . Builder 1 | . 1 . Tunneler 7 | 7 . . Hauler 1 | . 1 . Recycler 1 | 1 . . Watcher 3 | . 3 . Swarmer 2 | . 2 . Grunt 4 | . 4 . Subdweller 2 | . . 2 Best Kill Streak 5 | 3 5 2 Combat Bots Only 4 | . 4 2 Max Kills in Single Turn 2 | 1 2 2 Gunslinging . | . . . Exploded 2 | . . 2 Melee . | . . . Uniques/NPCs Destroyed . | . . . Combat | -11 -10 -10 -------- Run | Yrd Mat Sub Hostile Shots Fired 74 | . 21 53 Missed 18 | . 7 11 Damage Taken 992 | . 136 856 Core 254 | . 46 208 Absorbed by Shields . | . . . Ignored by Resistances 272 | . 42 230 Core Remaining (%) 100 | 100 . . Volleys Fired 39 | 11 23 5 Largest 2 | 2 2 1 Hottest 110 | 90 110 40 Shots Fired 71 | 22 44 5 Gun 33 | 22 8 3 Cannon 36 | . 36 . Launcher 2 | . . 2 Special . | . . . Kinetic 30 | 10 15 5 Thermal 40 | 11 29 . Explosive . | . . . Electromagnetic 1 | 1 . . Robot Hit Streak 25 | 8 21 25 Robot Miss Streak 2 | 1 2 . Penetration Max . | . . . Secondary Targets . | . . . Shots Hit Robots 42 | 15 22 5 Core Hits 29 | 10 13 6 Critical Kills . | . . . Critical Parts Destroyed 2 | 1 1 . Critical Strikes 4 | 2 2 . Burn 1 | 1 . . Destroy 1 | 1 . . Blast 1 | . 1 . Smash 1 | . 1 . Melee Attacks 25 | . 21 4 Impact 25 | . 21 4 Slashing . | . . . Piercing . | . . . Sneak Attacks 1 | . 1 . Combat Hostiles . | . . . Follow-up Attacks . | . . . Damage Inflicted 1345 | 182 477 686 Guns 275 | 161 37 77 Cannons 381 | . 381 . Explosions 593 | . . 593 Melee 75 | . 59 16 Ramming 21 | 21 . . Kinetic 903 | 47 186 670 Thermal 333 | 101 232 . Explosive . | . . . Electromagnetic 13 | 13 . . Impact 75 | . 59 16 Slashing . | . . . Piercing . | . . . Highest Corruption . | . . . Average Corruption . | . . . Corruption Purged . | . . . Corruption Blocked . | . . . Overload Shots . | . . . Overflow Damage 59 | . 59 . Projectiles . | . . . Explosions . | . . . Melee 59 | . 59 . Knockbacks 5 | . 5 . Impact . | . . . Kinetic 4 | . 4 . Secondary 1 | . 1 . Self-Inflicted Damage 83 | . . 83 Shots 2 | . . 2 Rammed 7 | 7 . . Targets Rammed 9 | 9 . . Kicked . | . . . Crushed 2 | 2 . . Highest Temperature 303 | 60 303 21 Average Temperature 77 | 23 96 15 Received Heat Transfer 390 | . 96 294 Siege Activations . | . . . Robots Corrupted . | . . . Combat Hostiles . | . . . Parts Fried 2 | . 2 . Impact Corruptions 2 | . 2 . Robots Melted . | . . . Combat Hostiles . | . . . Parts Melted 2 | 1 . 1 Heat Transferred 888 | 370 518 . Parts Sabotaged . | . . . Parts Stolen . | . . . Parts Stripped . | . . . Power Chain Reactions . | . . . Alert | -11 -10 -10 ------- Run | Yrd Mat Sub Peak Influence 146 | 40 146 . Initial 22 | . 22 . Average 38 | 20 42 . Maximum Alert Level . | . . . Low Security (%) 100 | 100 100 . Level 1 . | . . . Level 2 . | . . . Level 3 . | . . . Level 4 . | . . . Level 5 . | . . . High Security . | . . . Max Security . | . . . Squads Dispatched . | . . . Investigation . | . . . Extermination . | . . . Reinforcement . | . . . Assault . | . . . Garrison . | . . . Intercept . | . . . Searches Triggered . | . . . Construction Impeded . | . . . Haulers Reinforced . | . . . Active Scanning Responses . | . . . Cargo Convoy Interrupts . | . . . Stealth | -11 -10 -10 --------- Run | Yrd Mat Sub Distress Signals . | . . . Communications Jammed . | . . . Distress Signals . | . . . Times Spotted 22 | . 13 9 Peak Tracking Total 7 | . 3 7 Tactical Retreats . | . . . Traps | -11 -10 -10 ------- Run | Yrd Mat Sub Traps Triggered 1 | . 1 . Indirectly . | . . . Trap Hack Attempts . | . . . Triggered . | . . . Disarmed . | . . . Reprogrammed . | . . . Reused . | . . . Traps Extracted . | . . . Installed . | . . . Triggered . | . . . Machines | -11 -10 -10 ---------- Run | Yrd Mat Sub Machines Disabled . | . . . Max in Single Turn . | . . . Machines Repaired . | . . . Machines Dismantled . | . . . Machines Sabotaged . | . . . Overloaded Fab Kills . | . . . Hacking | -11 -10 -10 --------- Run | Yrd Mat Sub Machines Accessed 5 | . 5 . Terminals 4 | . 4 . Fabricators . | . . . Repair Stations . | . . . Recycling Units 1 | . 1 . Scanalyzers . | . . . Garrison Access . | . . . Total Hacks 7 | . 7 . Successful 6 | . 6 . Failed 1 | . 1 . Catastrophic . | . . . Database Lockouts . | . . . Manual 1 | . 1 . Terminals 6 | . 6 . Fabricators . | . . . Repair Stations . | . . . Recycling Units 1 | . 1 . Scanalyzers . | . . . Garrison Access . | . . . Terminal Hacks 5 | . 5 . Alert Level 1 | . 1 . Zone Layout 4 | . 4 . Fabricator Hacks . | . . . Repair Station Hacks . | . . . Recycling Unit Hacks 1 | . 1 . Report Inventory 1 | . 1 . Scanalyzer . | . . . Garrison Access Hacks . | . . . Unauthorized Hacks . | . . . Terminals . | . . . Fabricators . | . . . Repair Stations . | . . . Recycling Units . | . . . Scanalyzers . | . . . Garrison Access . | . . . Data Cores Recovered . | . . . Used . | . . . Hacking Detections 3 | . 3 . Full Trace Events . | . . . Feedback Events . | . . . Feedback Blocked . | . . . Robot Schematics Acquired . | . . . Robots Built . | . . . Authchips . | . . . Time . | . . . Total Robot Build Rating . | . . . Part Schematics Acquired . | . . . Parts Built . | . . . Authchips . | . . . Time . | . . . Total Part Build Rating . | . . . Parts Repaired . | . . . Time . | . . . Parts Recycled . | . . . Recycled Matter . | . . . Retrieved Matter . | . . . Retrieved Components . | . . . Parts Scanalyzed . | . . . Part Schematics Acquired . | . . . Parts Damaged . | . . . Bothacking | -11 -10 -10 ------------ Run | Yrd Mat Sub Used RIF Installer . | . . . Robots Hacked . | . . . Non-combat . | . . . Combat . | . . . Robot Hacks Applied . | . . . Relay Couplers Released . | . . . Fabnet Peak Effective % . | . . . Robots Rewired . | . . . Allies Hacked . | . . . Hacks Repelled . | . . . Allies | -11 -10 -10 -------- Run | Yrd Mat Sub Total Allies . | . . . Largest Group . | . . . Highest-Rated Group . | . . . Highest-Rated Ally . | . . . Total Orders . | . . . Ally Attacks . | . . . Total Damage . | . . . Kills . | . . . Allies Corrupted . | . . . Allies Melted . | . . . Intel | -11 -10 -10 ------- Run | Yrd Mat Sub Robot Analysis Total . | . . . Derelict Logs Recovered . | . . . Drone Launches . | . . . Drone Recoveries . | . . . Exploration | -11 -10 -10 ------------- Run | Yrd Mat Sub Turns Passed 1744 | 289 1318 137 Spaces Moved 915 | 145 703 67 Core 4 | 3 . 1 Treads 911 | 142 703 66 Legs . | . . . Wheels . | . . . Hover . | . . . Flight . | . . . Fastest Speed 50 | 50 160 160 Average Speed 159 | 157 160 160 Slowest Speed 200 | 160 160 200 Overloaded Moves . | . . . Propulsion Burnouts . | . . . Robots Hopped . | . . . Cave-ins Triggered . | . . . Exploration Rate (%) 35 | 5 96 4 Regions Visited 2 Branch Regions 1 Pre-discovered Areas . | . . . Known Exits Taken 1 | . 1 . Unknown Exits Taken 1 | 1 . . Scrap Searched 1 | . . 1 Spaces Dug 10 | . 10 . Terrain Destroyed 37 | . 10 27 Melee 10 | . 10 . Projectile . | . . . AOE 27 | . . 27 Terrain Rammed . | . . . Walls Destroyed . | . . . Machines Disabled . | . . . Actions | -11 -10 -10 --------- Run | Yrd Mat Sub Total 1073 | 177 812 84 Wait 44 | 1 43 . Move 913 | 144 702 67 Hop . | . . . Pick Up 15 | 2 11 2 Fast Attach 8 | 7 . 1 Attach 2 | 1 . 1 Detach 1 | 1 . . Swap 13 | 1 10 2 Drop 4 | . 2 2 Fire 39 | 11 23 5 Melee 25 | . 21 4 Ram . | . . . Kick . | . . . Crush 9 | 9 . . Escape Stasis . | . . . Rewire . | . . . Trap . | . . . Miscellaneous . | . . . Route ------- -11/Scrapyard -10/Materials (discovered 6 exits: *Mat x3 / *Min x2 / *Sub) -10/Subcaves History --------- Turn | Location | Event 12 | -11/Scrapyard | Discovered new exit (range 15) 290 | -11/Scrapyard | Entered Materials 310 | -10/Materials | Build established: Mutant 450 | -10/Materials | Discovered new exit (range 14) 556 | -10/Materials | Discovered new exit (range 14) 632 | -10/Materials | Discovered new exit (range 6) 1001 | -10/Materials | Discovered new exit (range 18) 1339 | -10/Materials | Identified exit to Materials 1363 | -10/Materials | Identified exit to Mines 1503 | -10/Materials | Discovered exit to Materials (range 5) 1598 | -10/Materials | Discovered new exit (range 3) 1604 | -10/Materials | Identified exit to Subcaves 1608 | -10/Materials | Entered Subcaves 1680 | -10/Subcaves | A swath of the cavern ceiling suddenly collapsed 1719 | -10/Subcaves | Ambushed by swarm of Subdwellers 1727 | -10/Subcaves | Ambushed by Subdwellers from Twisted Machinery 1731 | -10/Subcaves | Ambushed by Subdweller buried in earth 1736 | -10/Subcaves | Core integrity fell below 50% 1743 | -10/Subcaves | Core integrity fell below 20% 1745 | -10/Subcaves | Destroyed by W2-RXG(R) with Subdweller Beam Cannon Last Messages --------------- 01725_ HV Slug penetrates NK-TPS(R). 01726_ 2Q-VX3(h) destroyed. 01727_ Subatomizers dissect the Armor Integrity Analyzer. 01727_ Disposable Heat Sink melted. 01727_ 0E-37F(R) destroyed. 01727_ R1-5JP(R) destroyed. 01727_ CY-A75(R) angrily emerges from the Twisted Machinery. 01728_ Acquired 30 matter. 01729_ Dropped Lgt. Armor Plating. 01729_ Dropped Lrg. Storage Unit. 01731_ Acquired 10 matter. 01732_ E8-KN8(R): "ARGHSUB!" 01732_ Critical hit (Destroy). 01732_ Sub. Shrapnel Launcher destroyed. 01734_ Acquired Sub. Machine Gun. 01737_ Scrap Shield destroyed. 01738_ Subatomizers dissect the Myomer Leg. 01738_ Lgt. Treads destroyed. 01744_ Lgt. Nuclear Core destroyed. 01744_ Sub. Machine Gun destroyed. Map ----- +----------------------------------------------------+ | # #?????????????????????????????????????????????? | | ##????????????????????????????????????????????? | | # #????????????????????????????????????????????? | | ####?????????????????????????????????????????? | | # # #?????????????????????????????????????????? | | ##??????????????##????????????????????????? | | ### ##????????????? #???????????????????????? | | ##?## ##?###????????? #??????????????????????? | | #???## ###%##???????? ??????????????????????? | | ##????## ###|#???????? ???????????? ?????????? | | ##?????# #"# ##????????# #?????##??? ?????????? | | ##??????#### #????????## #???? ## ????????? | | ??????????## #####?###? ??? ????????? | | ??????????# # ### ### ##? ???????? | | ??????????# ## # ??????????? | | ??????????## ## #????????????????? | | ???????????## ### ### ## ##????????????????? | | ????????????###?#### #???##?????????????????? | | ???????????????????# ##" ##??????????????????????? | | ???????????????????####"" #??????????????????????? | | ?????????????????????#"#"##??????????????????????? | | ?????????????????????#;"""#??????????????????????? | | ??????????????????##?#;#"###??????? ????????????? | | ????????????????#;#;###;; ;#????? ?????????????? | | ?????????????????#$;; #;#??? ???????????????? | | ????????????????????# &@ ## "#?????????????????? | | ????????????????????# ]R]& #??????????????????? | | ????????????????????# ! ;#??????????????????? | | ????????????????????#&RRRRR; ##??????????????????? | | ????????????????????#[=R = ;##???????????????????? | | ????????????????????# !*! #???????????????????? | | ????????????????????# #???????????????????? | | ????????????????????## ##???????????????????? | | ?????????????????????########????????????????????? | | ?????????????????????????????????????????????????? | | ?????????????????????????????????????????????????? | | ?????????????????????????????????????????????????? | | ?????????????????????????????????????????????????? | | ?????????????????????????????????????????????????? | | ?????????????????????????????????????????????????? | | ?????????????????????????????????????????????????? | | ?????????????????????????????????????????????????? | | ?????????????????????????????????????????????????? | | ?????????????????????????????????????????????????? | | ?????????????????????????????????????????????????? | | | | | | | | | | | +----------------------------------------------------+ Best States ------------- Heat Dissipation 25 Energy Generation 14 Energy Capacity 250 Matter Stores 300 Matter Capacity 300 Sight Range 16 Terrain Scan Density 10 Armor Coverage 150 Resistance: KI 20 Resistance: TH 20 Resistance: EX 20 Resistance: EM 20 Resistance: I 20 Resistance: S 20 Resistance: P 20 Evasion (%) 40 Recoil Reduction 2 Offensive Hacking 10 Item Schematics ----------------- None Robot Schematics ------------------ None Fabricated ------------ Nothing Alien Tech Used ----------------- None Achievements -------------- None Challenges ------------ None Game ------ Seed BiocellCryofiberDiverter Manual? 0 Play Time 00:19:56 Cumulative 35.4 hours Start 2024.06.03 @ 23:02:57 End 2024.06.03 @ 23:20:37 Sessions 1 Manual Loads 0 Difficulty Adventurer Special Mode None Game No. 13 Rogue 0 Adventurer 13 Explorer 0 Win Type - Total 1 Types 1/0/0/0/0/0/0/0/0 Lore% 21 Gallery% 32 Achievement% 30 Wizard Run 0 Options --------- Layout 0 ASCII 0 Keyboard 0 Movement Numpad Keybinds 0 Fullscreen 1 Font 18/SmallcapsGlow Map View 76x50 Zoom Use 0% Tactical HUD 1 Map Filters NONE Filters NONE Steam 1 RUN: 52702d36-5751-40e4-ad85-f21d272e41d2